bitfinex-derivatives/quotes_ETHF0:USTF0_20250110
["timestamp","ask_amount","ask_price","bid_price","bid_amount"]
[1736498117299,0.9048,3292.8,3292.5,3.51153]
[1736498117706,0.9048,3292.8,3292.6,0.30372]
[1736498118101,7.08453334,3292.7,3292.6,0.30372]
[1736498118897,9.16247638,3292.8,3292.5,3.2078]
[1736498119102,9.16247638,3292.8,3292.7,0.30371]
[1736498119401,8.25767638,3292.8,3292.7,0.30371]
[1736498119993,7.53998471,3292.9,3292.5,3.2078]
[1736498120199,7.84368471,3292.9,3292.6,0.30372]
[1736498120398,7.53998471,3292.9,3292.5,3.2078]
[1736498120802,7.84368471,3292.9,3292.6,0.30372]
[1736498121604,0.30371,3292.8,3292.5,3.51153]
[1736498121805,7.84368471,3292.9,3292.6,0.30372]
[1736498122006,7.53998471,3292.9,3292.5,3.2078]
[1736498122510,9.43734443,3292.8,3292.6,0.30372]
[1736498122708,9.43734443,3292.8,3292.5,3.2078]
[1736498122910,9.43734443,3292.8,3292.7,0.30371]
[1736498123710,16.97732914,3292.9,3292.7,0.30371]
[1736498124011,16.97732914,3292.9,3292.8,0.3037]
[1736498124903,9.88444443,3292.9,3292.8,0.3037]
[1736498125605,9.43734443,3292.9,3292.8,0.3037]
[1736498126411,6.92934443,3292.9,3292.8,5.3037]
[1736498126911,6.92934443,3292.9,3292.8,41.1037]
[1736498127300,8.29434424,3292.9,3292.8,40.8]
[1736498127499,8.29434424,3292.9,3292.8,41.1037]
[1736498129005,8.2930034,3292.9,3292.8,41.1037]
[1736498130512,10.61701249,3293.3,3292.8,41.1037]
[1736498130712,10.61701249,3293.3,3293.2,3.51147]
[1736498131715,10.61701249,3293.3,3293.2,8.51147]
[1736498132608,0.8909,3293.9,3293.2,3.51147]
[1736498132809,0.8909,3293.9,3293.6,3.2078]
[1736498133112,1.19451,3293.9,3293.6,3.2078]
[1736498133418,1.19451,3293.9,3293.6,3.51142]
[1736498133713,1.19451,3293.9,3293.7,0.30362]
[1736498134315,0.8909,3293.9,3293.7,0.30362]
[1736498135006,1.1945,3293.9,3293.7,0.30362]
[1736498135712,0.30361,3293.8,3293.6,3.51143]
[1736498135906,0.4753,3293.7,3292.9,0.9082]
[1736498136115,0.30366,3293.3,3293.0,0.30368]
[1736498136314,0.4753,3293.7,3292.6,3.2078]
[1736498136509,0.4599,3293.2,3293.1,0.30367]
[1736498136905,0.4599,3293.2,3292.7,40.8]
[1736498137109,0.4324,3293.1,3293.0,0.30368]
[1736498138422,0.4599,3293.2,3292.7,40.8]
[1736498138715,0.4599,3293.2,3293.1,0.30368]
[1736498142615,0.30363,3293.7,3293.0,0.9011]
[1736498142616,8.27094034,3293.8,3293.7,0.30362]
[1736498143416,8.27094034,3293.8,3293.7,3.51142]
[1736498143620,8.27094034,3294.1,3293.7,3.2078]
[1736498143922,8.27094034,3294.1,3294.0,0.30359]
[1736498144420,8.27094034,3294.1,3294.0,41.10359]
[1736498144921,0.30354,3294.6,3294.0,41.10359]
[1736498144922,9.54794034,3294.7,3294.0,40.8]
[1736498145221,0.30356,3294.3,3294.0,41.10359]
[1736498146417,0.30355,3294.5,3294.2,0.30357]
[1736498146619,0.30355,3294.5,3294.0,40.8]
[1736498147328,1.58055,3294.5,3294.2,0.30357]
[1736498147818,1.277,3294.5,3293.8,0.9019]
[1736498148124,1.277,3294.5,3294.3,0.30356]
[1736498150214,1.277,3294.7,3294.3,0.30356]
[1736498150620,1.58053,3294.7,3294.3,0.30356]
[1736498150822,0.30354,3294.6,3294.3,0.30356]
[1736498151022,1.58053,3294.7,3294.3,0.30356]
[1736498152127,1.277,3294.7,3294.3,0.30356]
[1736498152327,4.4848,3294.9,3294.1,3.2078]
[1736498152527,4.4848,3294.9,3294.7,0.30352]
[1736498153221,3.2078,3294.9,3294.7,0.30352]
[1736498153427,4.4848,3294.9,3294.7,0.30352]
[1736498153625,1.3647,3294.8,3294.7,0.1101345]
[1736498153821,1.3647,3294.8,3294.2,0.75893]
[1736498154022,1.3647,3294.8,3294.7,0.30352]
[1736498155325,1.66823,3294.8,3294.5,0.30354]
[1736498155530,0.30353,3294.7,3294.4,0.30356]
[1736498155727,0.30354,3294.6,3294.4,0.30356]
[1736498155920,0.30353,3294.7,3294.5,0.30355]
[1736498156330,0.30353,3294.7,3294.4,0.30355]
[1736498156629,0.30353,3294.7,3294.1,3.2078]
[1736498156827,0.30354,3294.6,3294.3,0.30356]
[1736498157026,13.16138054,3294.8,3294.1,3.2078]
[1736498157326,0.30353,3294.7,3294.4,0.30355]
[1736498159630,0.30353,3294.7,3294.5,0.30355]
[1736498160226,21.88308477,3294.8,3294.1,3.2078]
[1736498160435,0.30353,3294.7,3294.4,0.30355]
[1736498160933,0.30353,3294.7,3294.5,0.30355]
[1736498161727,21.88308477,3294.8,3294.1,3.2078]
[1736498161922,21.73758997,3294.8,3294.1,3.2078]
[1736498162127,22.18660477,3294.8,3294.6,0.30353]
[1736498162335,21.88308477,3294.8,3294.2,0.30357]
[1736498162529,13.61039534,3294.8,3294.6,0.30353]
[1736498163034,13.16138054,3294.8,3294.7,0.30353]
[1736498163431,13.16138054,3294.8,3294.1,3.2078]
[1736498163633,13.46490054,3294.8,3294.6,0.30353]
[1736498163823,13.16138054,3294.8,3294.6,0.30353]
[1736498164028,13.16138054,3294.8,3294.7,0.30353]
[1736498164229,0.30353,3294.7,3294.5,0.30354]
[1736498164430,13.16138054,3294.8,3294.1,3.2078]
[1736498164629,22.61588275,3294.8,3294.1,3.2078]
[1736498164831,0.30357,3294.3,3294.1,3.51138]
[1736498165138,1.3749,3294.2,3294.1,3.51138]
[1736498166525,0.30354,3294.6,3294.4,0.30355]
[1736498167836,10.93985498,3294.6,3294.4,0.30355]
[1736498168030,10.93985498,3294.6,3294.1,3.2078]
[1736498168031,0.30355,3294.5,3294.3,0.30356]
[1736498168237,10.63631498,3294.6,3294.1,3.2078]
[1736498168432,0.30356,3294.4,3294.2,0.30357]
[1736498168637,0.30355,3294.5,3294.1,3.51138]
[1736498168837,10.63631498,3294.6,3294.1,3.2078]
[1736498169132,0.30356,3294.4,3294.2,0.30357]
[1736498169842,10.63631498,3294.6,3294.1,3.2078]
[1736498170035,10.63631498,3294.6,3294.5,0.30355]
[1736498173336,10.63631498,3294.6,3294.1,3.6213]
[1736498173543,10.63631498,3294.6,3294.4,0.30355]
[1736498173740,10.93985498,3294.6,3294.4,0.30355]
[1736498173941,10.63631498,3294.6,3294.1,3.2078]
[1736498174145,10.63631498,3294.6,3294.4,0.30355]
[1736498174537,0.30355,3294.5,3294.2,0.30357]
[1736498174937,10.93985498,3294.6,3294.3,0.30356]
[1736498175139,10.93985498,3294.6,3294.1,3.2078]
[1736498175341,10.63631498,3294.6,3294.4,0.30356]
[1736498175744,10.93985498,3294.6,3294.4,0.30356]
[1736498176541,10.93985498,3294.6,3294.1,3.2078]
[1736498176542,0.30355,3294.5,3294.3,0.30356]
[1736498177058,10.63631498,3294.6,3294.1,3.2078]
[1736498177250,10.63631498,3294.6,3294.4,0.30355]
[1736498177445,10.63631498,3294.6,3294.1,3.2078]
[1736498178045,10.63631498,3294.6,3294.5,0.30355]
[1736498178647,9.19467948,3294.7,3294.1,3.2078]
[1736498178854,9.19467948,3294.7,3294.6,0.30354]
[1736498180755,0.9003,3294.7,3294.6,0.30354]
[1736498180956,0.4609,3294.7,3294.6,0.30354]
[1736498181846,0.4609,3294.7,3294.5,0.30354]
[1736498182151,0.4609,3294.7,3294.6,0.30354]
[1736498182355,0.30354,3294.6,3294.4,0.30355]
[1736498182655,0.30357,3294.2,3294.1,2.918]
[1736498182848,0.30362,3293.8,3293.5,0.30363]
[1736498183050,0.30363,3293.6,3293.4,2.918]
[1736498183251,0.4581,3293.7,3293.4,2.918]
[1736498183555,0.4712,3293.5,3293.3,0.30365]
[1736498184144,0.4712,3293.5,3293.2,3.6811]
[1736498184346,0.4712,3293.5,3293.3,0.30365]
[1736498184750,0.4712,3293.5,3293.2,3.6811]
[1736498184955,0.4712,3293.5,3293.4,0.30365]
[1736498185356,0.4712,3293.5,3293.2,3.6811]
[1736498185561,1.269,3293.4,3292.8,3.2078]
[1736498185763,0.30368,3293.0,3292.8,3.2078]
[1736498185952,0.4473,3292.9,3292.8,3.2078]
[1736498186360,0.75099,3292.9,3292.8,3.2078]
[1736498186560,1.22739,3292.9,3292.8,3.2078]
[1736498186755,0.9237,3292.9,3292.8,3.2078]
[1736498190155,1.22739,3292.9,3292.8,3.2078]
[1736498190368,0.30372,3292.7,3292.4,40.8]
[1736498191068,3.2078,3292.5,3292.0,0.473]
[1736498191258,0.4312,3292.4,3291.9,0.73488]
[1736498191465,0.4312,3292.4,3292.2,0.30376]
[1736498191665,1.269,3292.6,3292.1,3.2078]
[1736498191964,1.269,3292.6,3292.5,0.30373]
[1736498192561,1.269,3292.6,3292.5,3.51153]
[1736498192868,1.269,3292.6,3292.1,3.2078]
[1736498193069,1.269,3292.6,3292.5,40.8]
[1736498193569,1.57272,3292.6,3292.5,40.8]
[1736498194062,1.269,3292.6,3292.5,40.8]
[1736498195671,1.269,3292.6,3292.5,41.10373]
[1736498196169,1.269,3292.6,3292.5,40.8]
[1736498196363,1.269,3292.6,3292.5,41.10373]
[1736498196565,1.269,3292.6,3292.5,40.8]
[1736498196869,1.269,3292.6,3292.5,41.10373]
[1736498197266,1.269,3292.6,3292.5,40.8]
[1736498197471,1.57272,3292.6,3292.2,0.30376]
[1736498197766,0.30373,3292.5,3292.2,0.30376]
[1736498198072,0.477,3292.5,3292.2,40.8]
[1736498198268,0.477,3292.5,3292.2,41.10375]
[1736498198469,0.4338,3292.4,3292.2,41.10375]
[1736498199371,0.30375,3292.3,3292.2,40.8]
[1736498199770,0.4594,3292.3,3291.7,3.5116]
[1736498200267,0.4594,3292.3,3291.7,44.3116]
[1736498200768,0.4594,3292.3,3291.7,3.5116]
[1736498200970,0.30377,3292.1,3291.7,3.5116]
[1736498201170,0.30377,3292.1,3291.8,0.30379]
[1736498201372,0.30377,3292.1,3291.7,3.5116]
[1736498201567,0.30377,3292.1,3291.8,0.3038]
[1736498201770,0.30377,3292.1,3291.7,3.5116]
[1736498201968,0.3038,3291.8,3291.7,3.2078]
[1736498202168,3.2078,3292.0,3291.5,40.8]
[1736498202367,3.2078,3292.0,3291.3,2.918]
[1736498202368,0.30383,3291.4,3291.3,2.918]
[1736498202772,0.30383,3291.4,3291.3,40.8]
[1736498203372,0.30386,3291.2,3291.0,3.2078]
[1736498203573,0.30386,3291.1,3290.8,0.30388]
[1736498203770,0.76316,3291.1,3290.8,41.10388]
[1736498203973,0.4593,3291.1,3290.8,40.8]
[1736498204672,0.4593,3291.1,3290.8,41.10388]
[1736498204873,0.4593,3291.1,3290.8,40.8]
[1736498205076,0.76317,3291.1,3290.8,40.8]
[1736498205278,0.76317,3291.1,3290.3,3.2078]
[1736498205279,1.269,3291.0,3290.3,3.2078]
[1736498205486,0.30388,3290.9,3290.5,0.30391]
[1736498205783,1.269,3291.0,3290.6,0.3039]
[1736498206085,0.30388,3290.9,3290.3,3.2078]
[1736498206287,0.30388,3290.9,3290.4,0.30392]
[1736498206488,0.30388,3290.9,3290.3,3.2078]
[1736498206683,1.57288,3290.9,3290.6,0.3039]
[1736498206885,3.2078,3290.8,3290.1,40.8]
[1736498207484,0.4458,3290.7,3290.1,40.8]
[1736498208292,1.269,3290.8,3290.3,3.2078]
[1736498208491,1.269,3290.8,3290.1,40.8]
[1736498209191,1.269,3290.8,3290.7,0.3039]
[1736498209584,1.269,3290.8,3290.6,0.3039]
[1736498209786,1.269,3290.8,3290.3,3.2078]
[1736498210189,3.2078,3291.6,3290.3,3.2078]
[1736498210385,3.2078,3291.6,3290.1,40.8]
[1736498210386,1.27,3291.5,3291.3,0.30383]
[1736498210790,1.27,3291.5,3291.4,0.74963]
[1736498210996,1.27,3291.5,3291.4,0.4458]
[1736498212698,1.57382,3291.5,3291.4,0.4458]
[1736498212893,1.57382,3291.5,3291.1,0.30386]
[1736498213095,3.51162,3291.6,3291.2,0.30384]
[1736498213399,3.51162,3291.6,3291.0,0.4458]
[1736498213400,3.2078,3291.6,3291.5,0.30382]
[1736498213603,3.6694,3292.2,3291.5,3.2078]
[1736498213897,0.30379,3291.9,3291.5,0.30382]
[1736498214496,0.4785,3292.1,3291.2,0.4645]
[1736498214686,0.4785,3292.1,3291.4,0.30382]
[1736498214893,0.4785,3292.1,3291.2,0.4645]
[1736498215095,0.3038,3291.8,3291.4,0.30383]
[1736498215296,0.30381,3291.7,3291.3,0.30384]
[1736498215496,0.3038,3291.8,3291.4,0.30383]
[1736498215793,0.30381,3291.7,3291.3,0.30384]
[1736498216101,1.27,3291.8,3291.2,0.4645]
[1736498216594,0.3038,3291.7,3291.3,0.30384]
[1736498217401,1.27,3291.8,3291.2,0.4645]
[1736498217593,1.27,3291.8,3291.5,0.30382]
[1736498217799,1.5738,3291.8,3291.2,0.4645]
[1736498218195,1.5738,3291.8,3291.4,0.30383]
[1736498218395,1.5738,3291.8,3291.2,0.4645]
[1736498218594,1.5738,3291.8,3291.4,0.30382]
[1736498218803,1.27,3291.8,3291.2,0.4645]
[1736498219004,1.5738,3291.8,3291.2,0.4645]
[1736498219404,1.5738,3291.8,3291.5,0.30382]
[1736498220601,1.27,3291.8,3291.4,0.30383]
[1736498220903,0.30379,3291.9,3291.2,0.4645]
[1736498221098,3.2078,3291.8,3291.2,0.4645]
[1736498221298,3.2078,3291.8,3291.1,3.2078]
[1736498221498,0.30385,3291.2,3291.1,3.2078]
[1736498221698,1.57385,3291.2,3291.1,3.2078]
[1736498221899,0.30388,3290.9,3290.2,3.2078]
[1736498222095,1.365,3291.1,3290.6,0.3039]
[1736498222302,0.30387,3291.0,3290.3,0.4425]
[1736498222496,0.30387,3291.0,3290.7,0.30389]
[1736498222697,0.30387,3291.0,3290.6,0.30391]
[1736498222899,0.30387,3291.0,3290.7,0.3039]
[1736498223098,0.30387,3291.0,3290.3,0.4425]
[1736498223303,0.30387,3291.0,3290.6,0.3039]
[1736498223815,1.365,3291.1,3290.6,0.3039]
[1736498224308,1.365,3291.1,3290.4,0.30392]
[1736498224309,3.2078,3290.7,3290.4,0.30392]
[1736498224714,3.2078,3290.7,3290.3,0.4425]
[1736498224906,0.30392,3290.5,3290.0,0.4737]
[1736498225101,3.2078,3290.7,3290.1,0.30395]
[1736498225308,3.2078,3290.7,3289.8,3.6783]
[1736498225309,3.2078,3290.7,3289.8,3.2078]
[1736498225508,3.2078,3290.3,3289.7,0.30399]
[1736498225705,2.01805,3290.2,3289.8,0.30397]
[1736498226007,1.27,3290.2,3290.1,0.30395]
[1736498226200,3.2078,3290.4,3290.1,0.30395]
[1736498226602,1.57392,3290.5,3290.2,0.30394]
[1736498227014,0.30393,3290.4,3290.1,0.30395]
[1736498227207,1.27,3290.5,3290.1,0.30395]
[1736498227508,1.57392,3290.5,3289.4,3.96783]
[1736498227708,4.1394,3291.1,3290.0,3.2078]
[1736498227902,11.92825232,3291.7,3290.4,3.2078]
[1736498228104,1.27,3291.6,3290.4,3.2078]
[1736498228407,8.27387804,3291.7,3291.6,0.30381]
[1736498228804,3.2078,3292.1,3291.2,3.2078]
[1736498229008,8.27387804,3292.5,3291.6,3.2078]
[1736498229213,8.27387804,3292.5,3292.3,0.30374]
[1736498229507,8.27387804,3292.5,3291.7,0.4546]
[1736498229714,8.57760804,3292.5,3292.1,0.30376]
[1736498230312,8.27387804,3292.5,3291.7,0.4546]
[1736498230508,3.51152,3292.6,3291.7,0.4546]
[1736498230712,0.30373,3292.5,3292.1,0.30376]
[1736498231012,0.30373,3292.5,3291.7,0.4546]
[1736498231209,3.2078,3292.6,3292.3,0.30374]
[1736498231411,3.2078,3292.6,3291.7,0.4546]
[1736498231412,2.6355,3292.7,3292.0,3.2078]
[1736498231712,2.6355,3292.7,3292.3,0.30374]
[1736498231918,0.30373,3292.6,3292.1,0.30376]
[1736498232114,0.30373,3292.6,3292.2,0.30375]
[1736498233013,0.30373,3292.6,3292.1,0.30376]
[1736498233207,1.3655,3292.7,3292.0,3.2078]
[1736498233513,1.3655,3292.7,3292.2,0.30375]
[1736498233708,0.30373,3292.6,3292.2,0.30375]
[1736498234103,0.30376,3292.3,3292.0,3.2078]
[1736498234515,3.2078,3292.6,3292.0,3.51157]
[1736498234710,3.51153,3292.6,3292.2,0.30376]
[1736498235014,3.2078,3292.6,3292.0,3.2078]
[1736498235210,0.30375,3292.4,3292.0,3.51157]
[1736498235612,3.2078,3292.6,3292.0,3.2078]
[1736498235807,3.2078,3292.6,3292.1,0.30376]
[1736498235808,0.30374,3292.5,3292.1,0.30376]
[1736498236014,3.51153,3292.6,3292.2,0.30376]
[1736498236210,3.51153,3292.6,3292.0,3.2078]
[1736498236211,0.30373,3292.5,3292.1,0.30376]
[1736498236604,1.66922,3292.7,3292.3,0.30374]
[1736498236815,0.30372,3292.6,3292.2,0.30375]
[1736498237410,2.95222,3292.7,3292.1,0.30377]
[1736498237611,2.1807,3292.7,3292.0,3.2078]
[1736498237811,2.1807,3292.7,3292.1,0.458]
[1736498238007,3.2078,3292.5,3291.5,3.2078]
[1736498238214,0.30377,3292.1,3291.7,0.3038]
[1736498238416,0.30375,3292.3,3291.9,0.30378]
[1736498238915,0.30375,3292.3,3291.6,0.30381]
[1736498239121,0.30375,3292.3,3291.9,0.30378]
[1736498239421,3.2078,3292.5,3292.0,0.30377]
[1736498239422,0.30375,3292.4,3292.0,0.30377]
[1736498239618,0.30377,3292.1,3291.7,0.3038]
[1736498239814,0.30374,3292.4,3292.0,0.30378]
[1736498240920,0.30374,3292.4,3292.1,0.30377]
[1736498241120,0.30374,3292.4,3292.0,0.30377]
[1736498241317,3.51153,3292.5,3292.2,0.30375]
[1736498241616,10.63631498,3292.3,3292.2,0.30375]
[1736498242517,11.48167804,3293.1,3292.3,0.30375]
[1736498242518,8.27387804,3292.4,3292.3,0.30375]
[1736498242718,8.27387804,3292.4,3292.3,3.51155]
[1736498242921,6.46823804,3292.4,3292.3,8.51155]
[1736498243223,0.86485804,3292.4,3292.3,13.84455]
[1736498243420,0.86485804,3292.4,3292.3,54.64455]
[1736498243615,0.30365,3293.4,3292.6,0.30372]
[1736498243616,0.30369,3293.0,3292.6,0.30372]
[1736498243815,3.2078,3293.2,3292.5,0.30373]
[1736498244021,0.30373,3292.6,3292.3,3.2078]
[1736498244218,3.2078,3292.8,3291.7,3.2078]
[1736498244523,0.30376,3292.3,3291.9,0.30378]
[1736498244723,0.30375,3292.3,3291.8,0.3038]
[1736498244918,0.30375,3292.3,3291.9,0.30378]
[1736498245421,0.30376,3292.2,3291.8,0.30379]
[1736498245617,0.4526,3292.7,3291.7,3.2078]
[1736498245618,1.283,3292.3,3291.7,3.2078]
[1736498245820,0.30383,3291.5,3291.3,3.2078]
[1736498246717,0.4526,3291.7,3291.3,3.2078]
[1736498246925,0.30382,3291.6,3291.3,3.2078]
[1736498247112,0.4526,3291.7,3291.3,3.2078]
[1736498247317,0.30381,3291.6,3291.3,3.2078]
[1736498247621,0.75641,3291.7,3291.3,3.2078]
[1736498247915,0.75641,3291.7,3291.4,0.30383]
[1736498248116,3.2078,3291.8,3291.3,3.2078]
[1736498248316,0.9521,3292.1,3291.3,3.2078]
[1736498248511,0.9521,3292.1,3291.9,0.30378]
[1736498248512,0.4781,3292.1,3291.9,0.30378]
[1736498248910,0.4781,3292.1,3291.2,44.0078]
[1736498249115,0.78187,3292.1,3291.7,0.3038]
[1736498249315,0.4781,3292.1,3291.2,44.0078]
[1736498249718,0.4781,3292.1,3291.8,0.30379]
[1736498250121,0.4781,3292.1,3292.0,0.30378]
[1736498250324,0.4781,3292.1,3291.6,3.2078]
[1736498250522,0.4781,3292.1,3292.0,0.30378]
[1736498250720,0.4781,3292.1,3291.6,3.2078]
[1736498250927,3.6859,3292.1,3291.2,40.8]
[1736498251123,0.30379,3291.9,3291.5,0.30382]
[1736498251327,3.6859,3292.1,3291.3,0.30384]
[1736498251525,0.30381,3291.7,3291.3,0.30384]
[1736498251826,0.4333,3291.6,3291.5,0.30382]
[1736498252132,0.30378,3292.0,3291.6,0.30381]
[1736498252320,0.4333,3292.0,3291.2,40.8]
[1736498252520,0.4333,3292.0,3291.3,0.30384]
[1736498252521,0.30381,3291.7,3291.3,0.30384]
[1736498252721,0.4625,3291.9,3291.2,40.8]
[1736498252921,0.76629,3291.9,3291.5,0.30382]
[1736498253619,0.4625,3291.9,3291.6,0.3038]
[1736498254224,0.4625,3291.9,3291.2,40.8]
[1736498254530,0.4625,3291.9,3291.8,0.3038]
[1736498254927,0.4625,3291.9,3291.6,0.3038]
[1736498255123,0.4625,3291.9,3291.7,0.3038]
[1736498255423,0.4333,3292.0,3291.9,0.30379]
[1736498255821,0.4781,3292.1,3291.5,3.2078]
[1736498255822,0.4781,3292.1,3292.0,0.30378]
[1736498256827,0.4781,3292.1,3291.5,3.2078]
[1736498257227,0.4781,3292.1,3292.0,0.30378]
[1736498257520,0.4781,3292.1,3291.5,3.2078]
[1736498257927,3.6859,3292.1,3291.2,40.8]
[1736498258133,0.30383,3291.5,3291.1,3.51165]
[1736498258424,0.9294,3291.4,3291.1,3.2078]
[1736498258631,0.30377,3292.1,3291.3,0.30384]
[1736498258823,1.22518,3292.0,3291.6,0.30381]
[1736498259026,0.9214,3292.0,3291.2,40.8]
[1736498259230,0.9214,3292.0,3291.9,0.30379]
[1736498259925,0.9214,3292.0,3291.5,3.2078]
[1736498260131,1.22518,3292.0,3291.6,0.30381]
[1736498260525,0.30381,3291.6,3291.2,40.8]
[1736498260831,0.30385,3291.3,3290.9,3.51167]
[1736498261136,0.9214,3291.2,3291.0,0.30387]
[1736498261631,0.9214,3291.2,3290.9,44.0078]
[1736498261632,0.9214,3291.2,3291.1,0.30386]
[1736498264030,1.294,3291.9,3291.7,0.3038]
[1736498264334,0.30378,3292.0,3291.7,0.3038]
[1736498264828,0.4347,3291.9,3291.7,0.3038]
[1736498265024,0.4347,3291.9,3291.8,0.3038]
[1736498266029,0.4347,3291.9,3291.7,0.3038]
[1736498266332,0.4347,3291.9,3291.8,0.3038]
[1736498266931,1.21165,3292.3,3292.0,0.30377]
[1736498267235,0.469,3292.2,3292.0,0.30377]
[1736498267933,0.469,3292.2,3291.7,3.2078]
[1736498268127,0.469,3292.2,3291.9,0.30378]
[1736498268526,0.469,3292.2,3291.7,3.2078]
[1736498268731,0.469,3292.2,3292.0,0.30377]
[1736498269330,0.469,3292.2,3292.1,3.51157]
[1736498269527,11.07321498,3292.8,3292.1,3.2078]
[1736498269731,11.07321498,3292.8,3292.7,0.30371]
[1736498269732,11.11331498,3292.8,3292.7,0.30371]
[1736498270432,0.477,3292.8,3292.7,0.30371]
[1736498270629,0.477,3292.8,3292.5,3.2078]
[1736498270828,0.477,3292.8,3292.7,0.30371]
[1736498273929,0.30368,3293.1,3292.7,0.30371]
[1736498274835,0.74357,3293.2,3292.8,0.3037]
[1736498275028,0.30368,3293.1,3292.8,0.3037]
[1736498276336,0.30368,3293.1,3292.5,3.2078]
[1736498276337,0.4399,3293.2,3292.5,3.2078]
[1736498276537,0.74357,3293.2,3292.8,0.3037]
[1736498277231,0.74357,3293.2,3292.6,0.30372]
[1736498277532,0.74357,3293.2,3292.8,0.3037]
[1736498277728,0.30368,3293.1,3292.7,0.30371]
[1736498278234,0.30369,3293.0,3292.6,0.30372]
[1736498278440,0.30368,3293.1,3292.7,0.30371]
[1736498279039,0.30368,3293.1,3292.2,40.8]
[1736498279337,0.30368,3293.1,3292.8,0.3037]
[1736498279536,0.30369,3293.0,3292.6,0.30371]
[1736498279726,0.30369,3293.0,3292.2,40.8]
[1736498279932,0.30369,3293.0,3292.7,0.30371]
[1736498280342,0.30368,3293.1,3292.8,0.3037]
[1736498280637,0.4399,3293.2,3292.9,0.30369]
[1736498280935,0.4399,3293.2,3293.1,0.30368]
[1736498282039,0.4399,3293.2,3292.4,40.8]
[1736498282236,0.30369,3293.0,3292.6,0.30372]
[1736498283133,11.09882642,3293.2,3292.2,44.0078]
[1736498283332,11.40249642,3293.2,3292.2,44.0078]
[1736498283534,11.09882642,3293.2,3292.2,44.0078]
[1736498283733,0.30368,3293.1,3292.8,0.3037]
[1736498283933,0.30369,3293.0,3292.7,0.30371]
[1736498284429,12.69649642,3293.2,3292.9,0.30369]
[1736498284634,12.39282642,3293.2,3292.6,3.2078]
[1736498284828,12.39282642,3293.2,3292.9,0.30369]
[1736498285033,12.39282642,3293.2,3293.1,0.30368]
[1736498285034,11.09882642,3293.2,3293.1,0.30368]
[1736498286534,11.09882642,3293.2,3292.6,3.2078]
[1736498286739,0.30368,3293.0,3292.7,0.30371]
[1736498287538,0.30369,3293.0,3292.7,0.30371]
[1736498288030,11.09882642,3293.2,3292.6,3.2078]
[1736498288336,11.40249642,3293.2,3292.9,0.30369]
[1736498288539,0.30368,3293.1,3292.8,0.3037]
[1736498289134,11.40249642,3293.2,3292.9,0.30369]
[1736498289435,11.09882642,3293.2,3292.6,3.2078]
[1736498289938,11.09882642,3293.2,3293.1,0.30368]
[1736498290334,11.09882642,3293.2,3293.1,41.10368]
[1736498291938,11.09882642,3293.2,3293.0,0.30368]
[1736498292850,0.4399,3293.2,3293.0,0.30368]
[1736498293338,0.4399,3293.2,3292.7,40.8]
[1736498293841,0.4399,3293.2,3292.2,3.2078]
[1736498294042,0.74357,3293.2,3292.9,0.30369]
[1736498294731,0.4399,3293.2,3292.6,3.2078]
[1736498294939,0.4399,3293.2,3293.1,0.30368]
[1736498295739,0.74357,3293.2,3292.8,0.3037]
[1736498295939,0.30369,3293.0,3292.7,0.30371]
[1736498296145,0.3037,3292.9,3292.6,0.30372]
[1736498296438,0.30368,3293.1,3292.7,0.30371]
[1736498296646,0.30368,3293.0,3292.7,0.30371]
[1736498298435,0.4399,3293.2,3292.7,0.30371]
[1736498298642,0.4399,3293.2,3292.3,40.8]
[1736498298842,0.74357,3293.2,3292.9,0.30369]
[1736498299044,0.4399,3293.2,3293.0,0.30368]
[1736498299940,0.74357,3293.2,3292.9,0.30369]
[1736498300339,0.4399,3293.2,3292.7,0.30371]
[1736498300539,0.74357,3293.2,3292.9,0.30369]
[1736498300842,0.30368,3293.1,3292.8,0.3037]
[1736498301539,3.2078,3292.9,3292.2,3.2078]
[1736498301745,3.2078,3292.8,3292.2,0.30375]
[1736498301943,3.2078,3292.4,3291.6,6.1258]
[1736498302247,0.4386,3292.3,3291.7,40.8]
[1736498302545,1.3494,3292.3,3291.7,40.8]
[1736498302742,1.3494,3292.3,3292.2,0.30376]
[1736498305850,0.9037,3292.3,3292.2,0.30376]
[1736498306839,0.9037,3292.3,3292.2,41.10376]
[1736498308847,0.4392,3292.7,3292.2,40.8]
[1736498309053,0.4699,3292.6,3292.5,0.30372]
[1736498309842,10.65892642,3293.0,3292.4,3.2078]
[1736498310144,10.65892642,3293.0,3292.9,0.30369]
[1736498310749,0.9051,3293.1,3292.9,0.30369]
[1736498311336,0.9051,3293.1,3293.0,0.30368]
[1736498312948,12.77386009,3293.1,3293.0,0.30368]
[1736498313250,12.77386009,3293.1,3292.9,0.30369]
[1736498314245,12.77386009,3293.1,3292.4,3.2078]
[1736498314444,3.2078,3293.0,3292.0,3.2078]
[1736498314750,0.3037,3292.8,3292.4,0.30374]
[1736498314955,0.30371,3292.7,3292.4,0.30374]
[1736498315159,3.2078,3293.0,3292.0,3.2078]
[1736498315349,12.77386009,3293.1,3292.0,3.51157]
[1736498315350,0.30374,3292.4,3292.0,3.51157]
[1736498315556,0.9162,3292.3,3292.1,0.30377]
[1736498316456,1.21995,3292.3,3292.0,3.2078]
[1736498316861,0.30376,3292.2,3291.8,0.30379]
[1736498317352,0.4516,3292.1,3291.8,0.30379]
[1736498317552,0.75537,3292.1,3291.8,0.30379]
[1736498317756,0.4516,3292.1,3291.7,40.8]